fUST/lending_fUST_20260102
["ID","MTS","AMOUNT","RATE_DAILY","PERIOD"]
[400303444,1767328244496,-175.05387005,0.00010765,2]
[400303445,1767328244505,-596.93613216,0.00010765,2]
[400303446,1767328245255,-1757.18161118,0.00010765,2]
[400303447,1767328245265,-3389.92955041,0.00010765,2]
[400303448,1767328245275,-4614.07077695,0.00010765,2]
[400303449,1767328245284,-6026.54142295,0.00010765,2]
[400303450,1767328245294,-470.82354867,0.00010765,2]
[400303451,1767328245303,-155.6047297,0.000108,2]
[400303452,1767328245313,-599.8788729,0.000108,2]
[400303453,1767328245323,-600.0,0.0001085,2]
[400303454,1767328245332,-152.74,0.000109,2]
[400303455,1767328245341,-500.0,0.00011133,2]
[400303456,1767328245359,-500.0,0.00011133,2]
[400303457,1767328245370,-500.0,0.00011133,2]
[400303458,1767328245380,-498.69904406,0.00011133,2]
[400303459,1767328245389,-500.0,0.00011133,2]
[400303460,1767328245399,-366.80249614,0.00011133,2]
[400303461,1767328245408,-500.0,0.00011133,2]
[400303462,1767328245418,-500.0,0.00011133,2]
[400303463,1767328245427,-500.0,0.00011133,2]
[400303464,1767328245437,-500.0,0.00011133,2]
[400303465,1767328245447,-500.0,0.00011133,2]
[400303466,1767328245456,-500.0,0.00011133,2]
[400303467,1767328245467,-266.19672366,0.00011133,2]
[400303468,1767328245476,-500.0,0.00011133,2]
[400303469,1767328245485,-500.0,0.00011133,2]
[400303470,1767328245494,-625.48897651,0.00011133,2]
[400303471,1767328245503,-500.0,0.00011133,2]
[400303472,1767328245513,-500.0,0.00011133,2]
[400303473,1767328245522,-500.0,0.00011133,2]
[400303474,1767328245532,-500.0,0.00011133,2]
[400303475,1767328245541,-500.0,0.00011133,2]
[400303476,1767328245551,-500.0,0.00011133,2]
[400303477,1767328245560,-500.0,0.00011133,2]
[400303478,1767328245569,-500.0,0.00011133,2]
[400303479,1767328245578,-500.0,0.00011133,2]
[400303480,1767328245588,-500.0,0.00011133,2]
[400303481,1767328245598,-500.0,0.00011133,2]
[400303482,1767328245607,-500.0,0.00011133,2]
[400303483,1767328245616,-500.0,0.00011133,2]
[400303484,1767328245626,-500.0,0.00011133,2]
[400303485,1767328245635,-500.0,0.00011133,2]
[400303486,1767328245644,-500.0,0.00011133,2]
[400303487,1767328245654,-500.0,0.00011133,2]
[400303488,1767328245663,-500.0,0.00011133,2]
[400303489,1767328245672,-470.68128119,0.00011133,2]
[400303490,1767328245682,-500.0,0.00011133,2]
[400303491,1767328245691,-500.0,0.00011133,2]
[400303492,1767328245700,-500.0,0.00011133,2]
[400303493,1767328245710,-500.0,0.00011133,2]
[400303494,1767328245719,-500.0,0.00011133,2]
[400303495,1767328245728,-500.0,0.00011133,2]
[400303496,1767328245737,-500.0,0.00011133,2]
[400303497,1767328245746,-1200.0,0.00011133,2]
[400303498,1767328245755,-3436.02216807,0.00011134,2]
[400303499,1767328245764,-360.09,0.00011165,2]
[400303500,1767328245773,-152.74,0.000113,2]
[400303501,1767328245782,-2230.315306,0.00011315,2]
[400303502,1767328245791,-2326.53349161,0.00011324,2]
[400303504,1767328245803,-153.81132794,0.00011324,2]
[400303506,1767328245813,-500.0,0.00011331,2]
[400303507,1767328245821,-391.05038585,0.00011332,2]
[400303508,1767328245830,-703.89069453,0.00011332,2]
[400303509,1767328245839,-1251.36123473,0.00011332,2]
[400303510,1767328245849,-1955.25192926,0.00011332,2]
[400303512,1767328245859,-2815.56277813,0.00011332,2]
[400303514,1767328245869,-3832.29378135,0.00011332,2]
[400303515,1767328245878,-4987.15595603,0.00011332,2]
[400303524,1767328246324,-18.28898287,0.00011332,2]
[400303525,1767328246333,-500.0,0.00011399,2]
[400303526,1767328246343,-599.8788729,0.00011425,2]
[400303527,1767328246352,-153.0,0.00011425,2]
[400303528,1767328246361,-153.0,0.00011425,2]
[400303529,1767328246371,-599.8788729,0.00011425,2]
[400303530,1767328246380,-153.0,0.00011425,2]
[400303531,1767328246389,-154.9877097,0.00011425,2]
[400303532,1767328246399,-420.0,0.00011468,2]
[400303533,1767328246408,-1680.0,0.00011472,2]
[400303534,1767328246417,-614.5988868,0.000115,2]
[400303535,1767328246426,-155.9468934,0.000115,2]
[400303536,1767328246437,-599.8788729,0.000115,2]
[400303537,1767328246446,-153.0,0.000115,2]
[400303538,1767328246456,-599.8788729,0.000115,2]
[400303539,1767328246465,-153.0,0.000115,2]
[400303540,1767328246475,-598.6774529,0.000115,2]
[400303541,1767328246484,-153.0,0.000115,2]
[400303542,1767328246493,-907.44622608,0.000115,2]
[400303543,1767328246502,-1000.0,0.00011578,2]
[400303544,1767328246511,-1000.0,0.00011578,2]
[400303545,1767328246519,-1000.0,0.00011578,2]
[400303546,1767328246529,-1000.0,0.00011578,2]
[400303547,1767328246541,-1000.0,0.00011578,2]
[400303548,1767328246551,-1000.0,0.00011578,2]
[400303549,1767328246562,-1000.0,0.00011578,2]
[400303550,1767328246571,-1000.0,0.00011578,2]
[400303551,1767328246678,-1000.0,0.00011578,2]
[400303552,1767328246713,-1000.0,0.00011578,2]
[400303553,1767328246724,-1000.0,0.00011578,2]
[400303554,1767328246733,-324.48596791,0.00011578,2]
[400303555,1767328246743,-461.67526834,0.00011578,2]
[400303556,1767328246754,-151.0,0.00011578,2]
[400303557,1767328246763,-151.0,0.00011578,2]
[400303558,1767328246772,-151.0,0.00011578,2]
[400303559,1767328246782,-151.0,0.00011578,2]
[400303560,1767328246792,-151.0,0.00011578,2]
[400303561,1767328246800,-151.0,0.00011578,2]
[400303562,1767328246809,-151.0,0.00011578,2]
[400303563,1767328246819,-151.0,0.00011578,2]
[400303564,1767328246828,-151.0,0.00011578,2]
[400303565,1767328246836,-151.0,0.00011578,2]
[400303566,1767328246846,-157.98409398,0.00011578,2]
[400303567,1767328246855,-262.75700005,0.00011578,2]
[400303568,1767328246864,-3134.73013766,0.00011588,2]
[400303569,1767328246875,-295.13886484,0.00011588,2]
[400303612,1767328862888,3849.73738425,9.76e-05,2]
[400303613,1767328862910,1150.26261575,9.76e-05,2]
[400303644,1767329243962,359.26109621,9.715e-05,2]
[400303648,1767329421486,1672.0,0.00028767,120]
[400303669,1767329432235,-365.43016535,9.9e-05,2]
[400303694,1767329438179,-193.56983465,9.9e-05,2]
[400303696,1767329438188,-150.0,9.913e-05,2]
[400303698,1767329438197,-152.74,0.0001,2]
[400303700,1767329438206,-418.46630263,0.00010094,2]
[400303702,1767329438215,-500.0,0.00010094,2]
[400303704,1767329438224,-500.0,0.00010094,2]
[400303705,1767329438233,-374.08916624,0.00010094,2]
[400303707,1767329438242,-180.60988628,0.00010094,2]
[400303709,1767329438251,-274.52014236,0.00010094,2]
[400303711,1767329438261,-1200.0,0.00010094,2]
[400303713,1767329438270,-300.0,0.00010094,2]
[400303715,1767329438279,-1200.0,0.00010094,2]
[400303717,1767329438288,-8387.92231833,0.00010095,2]
[400303719,1767329438299,-41612.07768167,0.00010095,2]
[400303721,1767329438308,-300.0,0.00010097,2]
[400303723,1767329438317,-300.0,0.00010097,2]
[400303724,1767329438327,-300.0,0.00010097,2]
[400303725,1767329438336,-300.0,0.00010097,2]
[400303726,1767329438345,-300.0,0.00010097,2]
[400303727,1767329438354,-300.0,0.00010097,2]
[400303728,1767329438364,-300.0,0.00010097,2]
[400303729,1767329438373,-300.0,0.00010097,2]
[400303730,1767329438383,-300.0,0.00010097,2]
[400303731,1767329438392,-300.0,0.00010097,2]
[400303732,1767329438401,-300.0,0.00010097,2]
[400303733,1767329438410,-300.0,0.00010097,2]
[400303734,1767329438419,-300.0,0.00010097,2]
[400303735,1767329438429,-300.0,0.00010097,2]
[400303736,1767329438438,-300.0,0.00010097,2]
[400303737,1767329438448,-199.18667064,0.00010302,2]
[400303738,1767329438457,-311.2797719,0.00010355,2]
[400303739,1767329438467,-152.74,0.000105,2]
[400303740,1767329438476,-232.03008074,0.00010673,2]
[400303741,1767329438486,-265.17723513,0.00010673,2]
[400303742,1767329438495,-414.33942989,0.00010673,2]
[400303743,1767329438505,-152.74,0.00011,2]
[400303744,1767329438514,-480.0,0.00011102,2]
[400303745,1767329438523,-420.0,0.00011102,2]
[400303746,1767329438533,-1680.0,0.00011103,2]
[400303747,1767329438543,-366.38,0.00011158,2]
[400303748,1767329438552,-153.0,0.000112,2]
[400303749,1767329438562,-599.8788729,0.000112,2]
[400303750,1767329438571,-156.06151371,0.00011224,2]
[400303751,1767329438581,-461.67526834,0.00011224,2]
[400303752,1767329438591,-2230.315306,0.00011224,2]
[400303753,1767329438717,-401.31805045,0.00011235,2]
[400303754,1767329438731,-2480.34481955,0.00011331,2]
[400303755,1767329438742,-500.0,0.00011399,2]
[400303756,1767329438753,-785.02460253,0.00011407,7]
[400303757,1767329438762,-802.2168768,0.0001147,2]
[400303758,1767329438772,-1901.426007,0.0001147,2]
[400303759,1767329438781,-352.5590083,0.0001147,2]
[400303760,1767329438790,-500.0,0.00011486,2]
[400303761,1767329438799,-286.89688942,0.00011486,2]
[400303762,1767329438808,-500.0,0.00011486,2]
[400303763,1767329438818,-500.0,0.00011486,2]
[400303764,1767329438827,-500.0,0.00011486,2]
[400303765,1767329438836,-388.54842062,0.00011486,2]
[400303766,1767329438846,-500.0,0.00011486,2]
[400303767,1767329438855,-500.0,0.00011486,2]
[400303768,1767329438867,-616.26964333,0.00011486,2]
[400303769,1767329438876,-500.0,0.00011486,2]
[400303770,1767329438884,-485.89665864,0.00011486,2]
[400303775,1767329440519,-430.55025904,0.0001147,2]
[400303779,1767329444985,-74.0793599,0.0001147,2]
[400303780,1767329444995,-14.10334136,0.00011486,2]
[400303781,1767329445004,-18813.82499721,0.00011487,2]
[400303782,1767329445015,-2274.42073784,0.00011487,2]
[400303783,1767329445165,-310.63394214,0.00011487,2]
[400303789,1767329446222,-29757.55979854,0.00011487,2]
[400303790,1767329446234,-4945.28912518,0.00011487,2]
[400303791,1767329446244,-270.12283298,0.00011487,2]
[400303792,1767329446255,-490.609,0.00011487,2]
[400303797,1767329758538,2000.0,0.00028767,120]
[400303799,1767329808794,1349.0,0.00028767,120]
[400303800,1767329850763,4227.39618832,0.00011,10]
[400303801,1767329850784,772.60381168,0.00011,10]
[400303802,1767329866798,5000.0,9.76e-05,2]
[400303803,1767329874584,272.31734818,9.76e-05,2]
[400303804,1767329890981,1190.40956267,9.76e-05,2]
[400303828,1767330403548,800.0,0.0001,3]
[400303829,1767330403573,25000.0,0.0001,3]
[400303841,1767330434035,2027.75937719,9.5e-05,2]
[400303842,1767330434058,10000.01,9.5e-05,2]
[400303843,1767330434081,10000.01,9.5e-05,2]
[400303844,1767330434102,10000.01,9.5e-05,2]
[400303845,1767330434126,253322.21062281,9.5e-05,2]
[400303849,1767330605448,-559.0,9.95e-05,2]
[400303850,1767330605471,-150.0,9.962e-05,2]
[400303851,1767330605492,-300.0,9.999e-05,2]
[400303852,1767330605517,-1200.0,9.999e-05,2]
[400303853,1767330605538,-7791.0,0.0001,2]
[400303854,1767330613339,-10000.0,0.0001,2]
[400303855,1767330615438,-4822.86224411,0.0001,2]
[400303856,1767330615460,-197.24340831,0.0001,2]
[400303857,1767330623383,-152.74,0.0001,2]
[400303914,1767330632617,-300.0,0.00010295,2]
[400303916,1767330632627,-300.0,0.00010295,2]
[400303917,1767330632637,-300.0,0.00010295,2]
[400303919,1767330632647,-300.0,0.00010295,2]
[400303921,1767330632657,-300.0,0.00010295,2]
[400303923,1767330632667,-300.0,0.00010295,2]
[400303925,1767330632677,-300.0,0.00010295,2]
[400303927,1767330632688,-300.0,0.00010295,2]
[400303929,1767330632697,-300.0,0.00010295,2]
[400303931,1767330632707,-300.0,0.00010295,2]
[400303933,1767330632716,-38.54839776,0.00010295,2]
[400304033,1767330638439,-261.45160224,0.00010295,2]
[400304034,1767330638449,-300.0,0.00010295,2]
[400304035,1767330638458,-300.0,0.00010295,2]
[400304036,1767330638469,-300.0,0.00010295,2]
[400304037,1767330638478,-300.0,0.00010295,2]
[400304038,1767330638619,-600.0,0.00010295,2]
[400304039,1767330638638,-320.88437756,0.00010458,2]
[400304040,1767330638648,-577.59187961,0.00010458,2]
[400304041,1767330638658,-1026.8300082,0.00010458,2]
[400304042,1767330638667,-1602.81746593,0.00010458,2]
[400304043,1767330638677,-152.74,0.000105,2]
[400304044,1767330638686,-361.72,0.00010622,2]
[400304045,1767330638696,-420.0,0.00010999,2]
[400304046,1767330638706,-1349.0,0.00010999,2]
[400304047,1767330638716,-2168.94073808,0.00011046,2]
[400304048,1767330638731,-311.40408147,0.00011046,2]
[400304049,1767330638741,-152.74,0.000111,2]
[400304050,1767330638751,-723.44,0.00011128,2]
[400304051,1767330638760,-1904.84415616,0.00011137,2]
[400304052,1767330638772,-325.47114984,0.00011137,2]
[400304053,1767330638782,-580.76558469,0.00011299,2]
[400304054,1767330638791,-720.0,0.00011324,2]
[400304055,1767330638803,-461.67526834,0.00011379,2]
[400304056,1767330638813,-226.36738447,0.00011383,2]
[400304057,1767330638822,-500.0,0.00011383,2]
[400304058,1767330638832,-500.0,0.00011383,2]
[400304059,1767330638842,-500.0,0.00011383,2]
[400304060,1767330638851,-500.0,0.00011383,2]
[400304061,1767330638861,-500.0,0.00011383,2]
[400304062,1767330638871,-500.0,0.00011383,2]
[400304063,1767330638881,-407.53010584,0.00011383,2]
[400304064,1767330638891,-500.0,0.00011383,2]
[400304065,1767330638901,-500.0,0.00011383,2]
[400304066,1767330638910,-500.0,0.00011383,2]
[400304067,1767330638920,-500.0,0.00011383,2]
[400304068,1767330638930,-500.0,0.00011383,2]
[400304069,1767330638940,-500.0,0.00011383,2]
[400304070,1767330638950,-500.0,0.00011383,2]
[400304071,1767330638959,-500.0,0.00011383,2]
[400304072,1767330638970,-395.88858297,0.00011383,2]
[400304073,1767330638980,-500.0,0.00011383,2]
[400304074,1767330638989,-271.52523888,0.00011383,2]
[400304075,1767330638999,-404.99220701,0.00011383,2]
[400304076,1767330639008,-500.0,0.00011383,2]
[400304077,1767330639018,-500.0,0.00011383,2]
[400304078,1767330639027,-500.0,0.00011383,2]
[400304079,1767330639037,-85.24946399,0.00011383,2]
[400304080,1767330639050,-414.75053601,0.00011383,2]
[400304081,1767330639061,-500.0,0.00011383,2]
[400304082,1767330639071,-500.0,0.00011383,2]
[400304083,1767330639080,-500.0,0.00011383,2]
[400304084,1767330639091,-500.0,0.00011383,2]
[400304085,1767330639101,-500.0,0.00011383,2]
[400304086,1767330639111,-500.0,0.00011384,2]
[400304087,1767330639121,-500.0,0.00011384,2]
[400304088,1767330639134,-500.0,0.00011384,2]
[400304089,1767330639144,-500.0,0.00011384,2]
[400304090,1767330639154,-200.8278226,0.00011384,2]
[400304091,1767330639163,-500.0,0.00011384,2]
[400304092,1767330639173,-500.0,0.00011384,2]
[400304093,1767330639182,-500.0,0.00011384,2]
[400304094,1767330639192,-395.90130702,0.00011384,2]
[400304095,1767330639201,-500.0,0.00011384,2]
[400304096,1767330639210,-500.0,0.00011384,2]
[400304097,1767330639218,-500.0,0.00011384,2]
[400304098,1767330639227,-260.18945551,0.00011384,2]
[400304099,1767330639236,-500.0,0.00011384,2]
[400304100,1767330639247,-500.0,0.00011384,2]
[400304101,1767330639256,-500.0,0.00011384,2]
[400304102,1767330639265,-500.0,0.00011384,2]
[400304103,1767330639275,-500.0,0.00011384,2]
[400304104,1767330639284,-500.0,0.00011384,2]
[400304105,1767330639293,-500.0,0.00011384,2]
[400304106,1767330639303,-500.0,0.00011384,2]
[400304107,1767330639312,-500.0,0.00011384,2]
[400304108,1767330639321,-500.0,0.00011384,2]
[400304109,1767330639330,-500.0,0.00011384,2]
[400304110,1767330639340,-500.0,0.00011384,2]
[400304111,1767330639349,-500.0,0.00011384,2]
[400304112,1767330639359,-500.0,0.00011384,2]
[400304113,1767330639369,-500.0,0.00011384,2]
[400304114,1767330639379,-500.0,0.00011384,2]
[400304115,1767330639388,-500.0,0.00011384,2]
[400304116,1767330639396,-500.0,0.00011384,2]
[400304117,1767330639405,-500.0,0.00011384,2]
[400304118,1767330639415,-151.0,0.00011385,2]
[400304119,1767330639424,-164.599233,0.00011385,2]
[400304120,1767330639433,-65335.58114176,0.00011385,2]
[400304121,1767330639445,-545.178,0.00011385,2]
[400304277,1767330644676,-4158.34418044,0.00011385,2]
[400304278,1767330645388,-530.90338377,0.00011385,2]
[400304279,1767330645400,-435.015,0.00011385,2]
[400304441,1767331838499,-152.74,0.0001,2]
[400304443,1767331838509,-150.0,0.00010155,2]
[400304445,1767331838519,-562.0,0.00010155,2]
[400304446,1767331838528,-152.74,0.000106,2]
[400304447,1767331838538,-101.81378403,0.00010985,2]
[400304448,1767331838550,-313.68621597,0.00010985,2]
[400304449,1767331838559,-2480.34481955,0.0001116,2]
[400304450,1767331838568,-105.61559486,0.000112,2]
[400304451,1767331838580,-2921.14684238,0.000112,2]
[400304452,1767331838589,-94.67226952,0.000112,2]
[400304453,1767331838600,-58.06773048,0.000112,2]
[400304454,1767331838609,-2230.315306,0.00011265,2]
[400304455,1767331838619,-461.67526834,0.00011267,2]
[400304456,1767331838634,-151.0,0.00011267,2]
[400304457,1767331838643,-151.0,0.00011267,2]
[400304458,1767331838652,-151.0,0.00011267,2]
[400304459,1767331838662,-151.0,0.00011267,2]
[400304460,1767331838671,-151.0,0.00011267,2]
[400304461,1767331838680,-151.0,0.00011267,2]
[400304462,1767331838689,-151.0,0.00011267,2]
[400304463,1767331838699,-151.0,0.00011267,2]
[400304464,1767331838708,-151.0,0.00011267,2]
[400304465,1767331838718,-151.0,0.00011267,2]
[400304466,1767331838728,-290.50612559,0.00011267,2]
[400304467,1767331838737,-53.2740426,0.00011267,2]
[400304468,1767331838749,-97.7259574,0.00011267,2]
[400304469,1767331838758,-151.0,0.00011267,2]
[400304470,1767331838767,-151.0,0.00011267,2]
[400304471,1767331838776,-151.0,0.00011267,2]
[400304472,1767331838785,-153.72168066,0.00011267,2]
[400304473,1767331838794,-1200.0,0.00011269,2]
[400304474,1767331838803,-300.0,0.0001127,2]
[400304475,1767331838812,-300.0,0.0001127,2]
[400304476,1767331838821,-300.0,0.0001127,2]
[400304477,1767331838831,-300.0,0.0001127,2]
[400304478,1767331838840,-300.0,0.0001127,2]
[400304479,1767331838849,-500.0,0.0001127,2]
[400304480,1767331838858,-500.0,0.0001127,2]
[400304481,1767331838867,-500.0,0.0001127,2]
[400304482,1767331838876,-500.0,0.0001127,2]
[400304483,1767331838885,-500.56352388,0.0001127,2]
[400304484,1767331838894,-500.0,0.0001127,2]
[400304485,1767331838905,-500.0,0.0001127,2]
[400304486,1767331838914,-500.0,0.0001127,2]
[400304487,1767331838923,-400.0,0.0001127,2]
[400304488,1767331838933,-500.0,0.0001127,2]
[400304489,1767331838942,-500.0,0.0001127,2]
[400304490,1767331838951,-500.0,0.0001127,2]
[400304491,1767331838960,-500.0,0.0001127,2]
[400304492,1767331838970,-500.0,0.0001127,2]
[400304493,1767331838979,-500.0,0.0001127,2]
[400304494,1767331838988,-500.0,0.0001127,2]
[400304495,1767331838998,-500.0,0.0001127,2]
[400304496,1767331839007,-500.0,0.0001127,2]
[400304497,1767331839017,-500.0,0.0001127,2]
[400304498,1767331839027,-500.0,0.0001127,2]
[400304499,1767331839036,-270.66027061,0.0001127,2]
[400304500,1767331839045,-300.0,0.0001127,2]
[400304501,1767331839055,-500.0,0.0001127,2]
[400304502,1767331839064,-500.0,0.0001127,2]
[400304503,1767331839074,-500.0,0.0001127,2]
[400304504,1767331839083,-500.0,0.0001127,2]
[400304505,1767331839092,-500.0,0.0001127,2]
[400304506,1767331839102,-500.0,0.0001127,2]
[400304507,1767331839111,-500.0,0.0001127,2]
[400304508,1767331839120,-500.0,0.0001127,2]
[400304509,1767331839129,-500.0,0.0001127,2]
[400304510,1767331839139,-500.0,0.0001127,2]
[400304511,1767331839148,-500.0,0.0001127,2]
[400304512,1767331839157,-500.0,0.0001127,2]
[400304513,1767331839166,-500.0,0.0001127,2]
[400304514,1767331839176,-500.0,0.0001127,2]
[400304515,1767331839185,-500.0,0.0001127,2]
[400304516,1767331839198,-500.0,0.0001127,2]
[400304517,1767331839207,-500.0,0.0001127,2]
[400304518,1767331839216,-500.0,0.0001127,2]
[400304519,1767331839225,-500.0,0.0001127,2]
[400304520,1767331839234,-650.0,0.0001127,2]
[400304521,1767331839243,-1200.0,0.00011271,2]
[400304522,1767331839253,-646.71966968,0.00011271,2]
[400304523,1767331839262,-646.71966968,0.00011271,2]
[400304524,1767331839271,-225.15730028,0.00011271,2]
[400304525,1767331839280,-646.71966968,0.00011271,2]
[400304526,1767331839289,-646.71966968,0.00011271,2]
[400304527,1767331839299,-646.71966968,0.00011271,2]
[400304528,1767331839308,-500.0,0.00011271,2]
[400304529,1767331839317,-646.71966968,0.00011271,2]
[400304530,1767331839326,-646.71966968,0.00011271,2]
[400304531,1767331839337,-418.00311247,0.00011271,2]
[400304532,1767331839347,-646.71966968,0.00011271,2]
[400304533,1767331839355,-500.0,0.00011271,2]
[400304534,1767331839365,-646.71966968,0.00011271,2]
[400304535,1767331839374,-646.71966968,0.00011271,2]
[400304536,1767331839383,-646.71966968,0.00011271,2]
[400304537,1767331839396,-646.71966968,0.00011271,2]
[400304538,1767331839406,-646.71966968,0.00011271,2]
[400304539,1767331839415,-646.71966968,0.00011271,2]
[400304540,1767331839425,-646.71966968,0.00011271,2]
[400304541,1767331839435,-646.71966968,0.00011271,2]
[400304542,1767331839444,-646.71966968,0.00011271,2]
[400304543,1767331839453,-1080.82965132,0.00011273,2]
[400304544,1767331839463,-151.0,0.00011274,2]
[400304545,1767331839474,-151.0,0.00011275,2]
[400304546,1767331839483,-151.0,0.00011275,2]
[400304547,1767331839492,-151.0,0.00011275,2]
[400304548,1767331839600,-175.931,0.00011276,2]
[400304549,1767331839613,-153.87,0.00011281,2]
[400304550,1767331839622,-500.0,0.00011282,2]
[400304551,1767331839631,-1000000.0,0.00011284,2]
[400304552,1767331839640,-151.0,0.000113,2]
[400304553,1767331839650,-151.0,0.000113,2]
[400304554,1767331839659,-151.0,0.000113,2]
[400304555,1767331839668,-151.0,0.000113,2]
[400304556,1767331839678,-151.0,0.000113,2]
[400304557,1767331839687,-151.0,0.000113,2]
[400304558,1767331839696,-151.0,0.000113,2]
[400304559,1767331839706,-151.0,0.000113,2]
[400304560,1767331839715,-151.0,0.000113,2]
[400304561,1767331839724,-151.0,0.000113,2]
[400304562,1767331839734,-500.0,0.00011399,2]
[400304563,1767331839743,-151.0,0.000114,2]
[400304564,1767331839752,-151.0,0.000114,2]
[400304565,1767331839761,-151.0,0.000114,2]
[400304566,1767331839771,-151.0,0.000114,2]
[400304567,1767331839780,-151.0,0.000114,2]
[400304568,1767331839789,-151.0,0.000114,2]
[400304569,1767331839799,-831.01,0.00011508,2]
[400304570,1767331839808,-153.88514916,0.00011555,2]
[400304571,1767331839817,-500.0,0.00011556,2]
[400304572,1767331839826,-300.0,0.00011612,2]
[400304573,1767331839835,-300.0,0.00011612,2]
[400304574,1767331839843,-300.0,0.00011612,2]
[400304575,1767331839852,-300.0,0.00011612,2]
[400304576,1767331839861,-300.0,0.00011612,2]
[400304577,1767331839871,-300.0,0.00011612,2]
[400304578,1767331839880,-300.0,0.00011612,2]
[400304579,1767331839888,-300.0,0.00011612,2]
[400304580,1767331839898,-300.0,0.00011612,2]
[400304581,1767331839907,-300.0,0.00011612,2]
[400304582,1767331839916,-300.0,0.00011612,2]
[400304583,1767331839926,-300.0,0.00011612,2]
[400304584,1767331839935,-300.0,0.00011612,2]
[400304585,1767331839945,-300.0,0.00011612,2]
[400304586,1767331839954,-300.0,0.00011612,2]
[400304587,1767331839963,-600.0,0.00011612,2]
[400304588,1767331839973,-10082.70392189,0.00011688,2]
[400304589,1767331839983,-310.9119957,0.00011781,2]
[400304590,1767331839992,-303.6486577,0.00011781,2]
[400304591,1767331840001,-303.6486577,0.00011781,2]
[400304592,1767331840011,-303.6486577,0.00011781,2]
[400304593,1767331840020,-303.6486577,0.00011781,2]
[400304594,1767331840029,-303.6486577,0.00011781,2]
[400304595,1767331840039,-152.74,0.000118,2]
[400304596,1767331840048,-2312.83697232,0.00011813,2]
[400304597,1767331840057,-478.75725327,0.00011815,2]
[400304598,1767331840067,-500.0,0.0001183,2]
[400304599,1767331840077,-944.9948565,0.00011895,2]
[400304600,1767331840087,-776.0,0.000119,2]
[400304601,1767331840096,-600.62237253,0.0001196,2]
[400304602,1767331840105,-353.52896128,0.00012,2]
[400304603,1767331840114,-1246.51,0.00012031,2]
[400304604,1767331840124,-500.0,0.00012043,2]
[400304605,1767331840133,-500.0,0.00012043,2]
[400304606,1767331840142,-500.0,0.00012043,2]
[400304607,1767331840151,-500.0,0.00012043,2]
[400304608,1767331840160,-500.0,0.00012043,2]
[400304609,1767331840170,-500.0,0.00012043,2]
[400304610,1767331840179,-500.0,0.00012043,2]
[400304611,1767331840188,-500.0,0.00012043,2]
[400304612,1767331840197,-500.0,0.00012043,2]
[400304613,1767331840207,-500.0,0.00012043,2]
[400304614,1767331840217,-500.0,0.00012043,2]
[400304615,1767331840226,-500.0,0.00012043,2]
[400304616,1767331840236,-500.0,0.00012043,2]
[400304617,1767331840244,-500.0,0.00012043,2]
[400304618,1767331840253,-500.0,0.00012043,2]
[400304619,1767331840262,-500.0,0.00012043,2]
[400304620,1767331840271,-500.0,0.00012043,2]
[400304621,1767331840280,-500.0,0.00012043,2]
[400304622,1767331840290,-500.0,0.00012043,2]
[400304623,1767331840299,-500.0,0.00012043,2]
[400304624,1767331840307,-500.0,0.00012043,2]